Cogmind - Beta 17 @@@ ROGUE MODE // 2026.07.15 @ 09:27:04 Player: aperiodic Result: Destroyed by S-43 Plague with Heavy Machine Gun Performance ------------- Evolutions (8) 4000 Regions Visited (19) 3800 Robots Destroyed (333) 1665 Value Destroyed (16797) 16797 Prototype IDs (78) 1560 Alien Tech Used (5) 1000 Bonus (20311) 20311 TOTAL SCORE: 49133 Bonus ------- Triggered High Security 500 High Alert Combat Kills 5116 Follower Combat Kills 4003 Hunted by Unchained 500 Network Hubs Disabled 400 Registered with UFD 300 Met Optimus in HQ 500 Met Zhirov 300 Met R17 at Cetus 500 Read Decrypted Archives 300 Found Hidden Lab 3000 Used Core Reset Matrix 3000 Met R17 at Research 2000 Friendly Fire -108 Cogmind --------- Core Integrity 0/1450 Matter 300/300 Energy 100/100 System Corruption 21% Temperature Cool (0) Movement Core (50) Location -2/Research Parts ------- > --- POWER (2) -------- (None) > --- PROPULSION (4) --- (None) > --- UTILITY (14) ----- Advanced Coolant Injector Advanced Coolant Injector Advanced Signal Interpreter Advanced Targeting Computer Jamming Amplifier Graphene Brace > --- WEAPON (3) ------- (None) > --- INVENTORY (5) ---- Core Regenerator Subatomic Replicator Fusion Bomb Launcher Peak State ------------ > --- POWER ------------ Quantum Reactor Light Quantum Reactor > --- PROPULSION ------- Maxwheels > --- UTILITY ---------- Scrap Suit Advanced Cooling System Huge Storage Unit Advanced Targeting Computer Advanced Phase Shifter Centrium Medium Armor Plating Experimental Powered Armor Medium Regenerative Plating Advanced Force Field Experimental Hacking Suite Experimental Hacking Suite Quantum Router A0-MCA's Component Scanner > --- WEAPON ----------- Overtuned Quantum Rifle Overtuned Quantum Rifle Enhanced Quantum Rifle Overtuned Railgun Fusion Bomb Launcher > --- INVENTORY -------- Light Quantum Reactor Scrap Suit Advanced Energy Well Experimental Matter Compressor Long-range Sensor Array Advanced Weapon Cycler Advanced Transmission Jammer Advanced Cloaking Device Experimental Propulsion Shielding Experimental Weapon Shielding Transdimensional Reconstructor High-powered Transdimensional Reconstructor High-powered Transdimensional Reconstructor High-powered Transdimensional Reconstructor Core Regenerator Subatomic Replicator Overtuned Quantum Rifle Enhanced Quantum Rifle Warp Cannon Warp Cannon Overtuned Railgun Compact Tesla Bomb Launcher CPS Tube CPS Tube [Rating: 209] Favorites ----------- Power Quantum Reactor Engine Ion Engine Power Core Fission Core Reactor Quantum Reactor Propulsion Overtuned Scrapsphere Treads Improved Medium Treads Wheel Overtuned Scrapsphere Utility Scrap Suit Device Scrap Suit Storage Huge Storage Unit Processor Improved Signal Interpreter Hackware Experimental Hacking Suite Protection Enhanced Scrap Shield Weapon Overtuned Pulse Rifle Energy Gun Overtuned Pulse Rifle Energy Cannon Enhanced Nova Cannon Ballistic Gun Barrage Gun Launcher Fusion Bomb Launcher Special Weapon Mining Laser Piercing Weapon Heavy Pick Build | -11 -10 -10 -9 -6 -6 -6 -6 -6 -5 -5 -5 -5 -4 -4 -4 -4 -3 -3 -2 ------- Run | Yrd Mat Sub Scr Fac Ext Cet Arc Hub Fac Upp Upp Zhi Pro Fac Arm Lab Res Qua Res Slots Evolved 16 | . . . . 8 . . . . 2 . . . . 2 . . 2 . 2 Power 1 | . . . . . . . . . . . . . . . . . . . 1 Propulsion 2 | . . . . 2 . . . . . . . . . . . . . . . Utility 12 | . . . . 6 . . . . 1 . . . . 2 . . 2 . 1 Weapon 1 | . . . . . . . . . 1 . . . . . . . . . . Parts Attached 193 | 8 8 6 6 34 14 22 . 4 9 2 . 1 . 5 23 3 11 7 30 Power 15 | 1 1 . 1 2 1 2 . 1 . . . . . . . . . 1 5 Engine 3 | 1 1 . 1 . . . . . . . . . . . . . . . . Core 3 | . . . . 2 1 . . . . . . . . . . . . . . Reactor 9 | . . . . . . 2 . 1 . . . . . . . . . 1 5 Propulsion 29 | 2 3 . 4 7 3 2 . 2 3 . . . . 1 1 . . . 1 Treads 4 | . 2 . . 2 . . . . . . . . . . . . . . . Leg . | . . . . . . . . . . . . . . . . . . . . Wheel 25 | 2 1 . 4 5 3 2 . 2 3 . . . . 1 1 . . . 1 Hover . | . . . . . . . . . . . . . . . . . . . . Flight . | . . . . . . . . . . . . . . . . . . . . Utility 95 | 2 2 1 1 11 8 12 . . 6 2 . 1 . 4 16 2 6 1 20 Device 39 | 1 . . 1 7 4 5 . . 1 1 . . . 1 4 . 2 . 12 Storage 9 | 1 1 . . 1 1 1 . . 2 . . . . . . . 1 . 1 Processor 7 | . . . . 1 . 1 . . . . . . . 1 . 1 1 . 2 Hackware 17 | . . . . 1 . . . . 2 . . . . 1 10 1 1 . 1 Protection 23 | . 1 1 . 1 3 5 . . 1 1 . 1 . 1 2 . 1 1 4 Artifact . | . . . . . . . . . . . . . . . . . . . . Weapon 54 | 3 2 5 . 14 2 6 . 1 . . . . . . 6 1 5 5 4 Energy Gun 22 | 2 . . . 4 1 4 . 1 . . . . . . 5 . 2 . 3 Energy Cannon 6 | . 1 . . 2 . . . . . . . . . . 1 . . 2 . Ballistic Gun 13 | 1 . 5 . 4 . 1 . . . . . . . . . . 1 1 . Ballistic Cannon . | . . . . . . . . . . . . . . . . . . . . Launcher 5 | . . . . 2 . 1 . . . . . . . . . . . 2 . Special Weapon 6 | . 1 . . 1 1 . . . . . . . . . . . 2 . 1 Impact Weapon . | . . . . . . . . . . . . . . . . . . . . Slashing Weapon . | . . . . . . . . . . . . . . . . . . . . Piercing Weapon 2 | . . . . 1 . . . . . . . . . . . 1 . . . Special Melee Weapon . | . . . . . . . . . . . . . . . . . . . . Unidentified Prototypes 24 | . . . . 6 1 7 . 1 . 1 . 2 1 1 2 1 . . 1 Corrupted Parts 3 | . . . . . . . . 2 . . . . . . . . . . 1 System Corruption 22 | . . . . . . . . 10 . . . . . . . . . . 12 Parts Lost 59 | . 1 . . 6 2 1 . 1 1 . 3 . 3 . 6 . . 3 32 Power 2 | . . . . . . . . . . . . . . . . . . 1 1 Propulsion 13 | . . . . 2 1 . . 1 1 . 2 . . . 4 . . . 2 Utility 30 | . 1 . . 3 . . . . . . . . 1 . 1 . . 2 22 Weapon 14 | . . . . 1 1 1 . . . . 1 . 2 . 1 . . . 7 Highest Loss Streak 8 | . 1 . . 2 1 1 . 1 1 . 1 . 3 . 3 . . 2 8 To Critical Strikes 1 | . . . . . . . . . . . . . . . 1 . . . . Average Backups 16 | 3 9 5 14 12 12 13 15 14 14 18 18 15 17 14 20 19 23 23 22 Power . | . 1 . . . . . 1 . . . . . . 1 1 1 1 . . Propulsion 1 | 2 3 1 3 1 1 1 1 1 1 2 1 1 1 1 . . . . . Utility 7 | . . 1 4 2 3 7 7 7 6 8 9 10 11 10 13 10 11 10 8 Weapon 4 | 1 4 3 4 4 3 2 4 4 5 5 4 2 1 . 1 3 5 5 5 Tool/Special . | . . . . . . . . . . . . . . . . . . . . Unused Backups 54 | . 1 2 7 . . 13 . . 3 1 2 . 9 . 2 1 4 1 8 Power 3 | . . . 1 . . . . . . . . . . . 1 . . . 1 Propulsion 5 | . 1 . . . . 2 . . . . . . 2 . . . . . . Utility 26 | . . 1 3 . . 7 . . 3 . . . 4 . 1 . 4 1 2 Weapon 14 | . . 1 3 . . 4 . . . 1 2 . 3 . . . . . . Tool/Special 6 | . . . . . . . . . . . . . . . . 1 . . 5 Average Slot Usage (%) 83 | . 99 85 88 87 91 90 86 91 91 94 91 87 87 82 73 66 69 79 80 Engine 3 | . 14 14 14 . . . . . . . . . . . . . . . . Core 1 | . . . . 5 6 . . . . . . . . . . . . . . Reactor 3 | . . . . . . 5 6 6 5 5 5 5 5 4 4 4 4 4 7 Treads 1 | . 4 10 . 5 . . . . . . . . . . . . . . . Wheel 15 | . 23 17 27 18 25 24 20 24 21 23 22 17 17 15 9 4 4 4 3 Device 13 | . 12 . 2 20 21 17 20 20 17 17 17 16 17 15 12 15 12 12 17 Storage 5 | . 14 1 14 6 6 7 6 6 5 5 5 5 5 5 4 4 4 4 4 Processor 5 | . . . . 5 6 12 13 13 5 5 5 5 5 5 4 7 12 13 9 Hackware 6 | . . . . 4 5 . . . 10 11 11 11 11 14 15 5 7 8 8 Protection 6 | . 1 12 . 4 4 8 6 6 5 5 5 5 4 5 4 8 8 9 10 Energy Gun 7 | . 8 . . 4 5 10 6 9 15 16 13 11 10 9 10 6 8 14 10 Energy Cannon 1 | . 5 . . 1 1 . . . . . . . . . . 3 3 2 1 Ballistic Gun 8 | . 14 25 28 4 5 . 6 3 1 . 1 5 4 4 3 . . 4 4 Peak Build Rating 209 | 7 8 15 29 68 67 82 67 70 82 82 84 81 82 100 133 147 174 179 209 Average Rating 89 | 6 7 11 19 61 60 73 67 67 79 80 78 76 78 91 118 140 158 175 188 On Entrance 75 | . 7 8 15 29 60 65 67 67 68 80 80 76 79 81 98 133 147 171 177 Avg Prop Armor Cover (%) 4 | . 10 1 . 5 . . . . . . . . . . . . . . . Naked Turns . | . . . . . . . . . . . . . . . . . . . . Heaviest Build 197 | 11 50 50 55 84 78 96 81 86 125 132 128 128 128 137 143 154 165 159 197 Greatest Support 68 | 32 40 32 32 68 58 42 26 42 42 36 36 26 26 36 36 30 30 30 30 Greatest Overweight (x) 45 | . 1 1 4 3 1 3 3 3 3 3 4 4 4 5 8 5 5 5 45 Average Overweight (x) 2 | . . . 1 1 1 2 3 1 2 3 3 4 4 4 3 4 4 4 5 Largest Inventory Capacity 25 | 8 20 20 20 20 20 20 20 20 25 25 25 25 25 25 25 25 25 25 25 Average Capacity 20 | 7 17 6 20 20 20 20 20 20 21 25 25 25 25 25 25 25 25 25 24 Most Carried 25 | 7 14 20 20 20 20 20 20 20 23 25 25 23 24 21 25 25 25 25 25 Average Carried 19 | 4 9 6 19 19 19 18 20 19 19 24 24 21 23 19 22 21 24 24 23 Final Capacity 25 | 8 20 20 20 20 20 20 20 20 25 25 25 25 25 25 25 25 25 25 5 Final Carried 25 | 7 14 20 20 20 20 20 20 20 23 25 21 23 20 21 25 25 24 23 3 Scrap Suit Usage (%) 34 | . . . . 20 60 11 . 58 39 3 96 100 100 82 22 65 7 69 66 Parts Cannibalized 64 | . . . . 1 2 2 . 10 6 3 3 . 2 2 8 . 1 3 21 Class Distribution -------------------- 30% | Scavenger-Scrapper 20% | Mutant 13% | Hacker-Skirmisher 7% | Hacker-Tank 6% | Derelict-Mutant 5% | Skirmisher Dominant Class ---------------- Mutant | -10/Materials Mutant | -10/Subcaves Derelict-Mutant | -9/Scraptown Skirmisher | -6/Factory Scavenger-Scrapper | -6/Extension Scavenger-Scrapper | -6/Cetus Scavenger-Scrapper | -6/Archives Scavenger-Scrapper | -6/Hub_04(d) Scavenger-Scrapper | -5/Factory Scavenger-Scrapper | -5/Upper Caves Scavenger-Scrapper | -5/Upper Caves Scavenger-Scrapper | -5/Zhirov Scavenger-Scrapper | -4/Proximity Caves Scavenger-Scrapper | -4/Factory Hacker-Skirmisher | -4/Armory Scavenger-Mutant | -4/Lab Hacker-Skirmisher | -3/Research Hacker-Skirmisher | -3/Quarantine Hacker-Tank | -2/Research Resources | -11 -10 -10 -9 -6 -6 -6 -6 -6 -5 -5 -5 -5 -4 -4 -4 -4 -3 -3 -2 ----------- Run | Yrd Mat Sub Scr Fac Ext Cet Arc Hub Fac Upp Upp Zhi Pro Fac Arm Lab Res Qua Res Matter Collected 8792 | 293 448 422 106 1360 447 452 . 307 275 74 138 52 84 191 831 . 385 826 2101 Remotely . | . . . . . . . . . . . . . . . . . . . . Salvage Created 18295 | 118 487 216 . 1784 271 742 . 879 593 322 489 97 444 151 1243 . 531 2491 7437 Parts 792 | 8 29 21 . 76 15 25 . 33 26 10 23 1 18 14 52 . 14 110 317 Haulers Intercepted 9 | . 2 . . 2 . . . 2 . 1 . . . . . . . . 2 Recyclers Shooed 9 | 1 . . . 4 . . . . . . . . . . . . . 3 1 Parts Field Recycled . | . . . . . . . . . . . . . . . . . . . . Retrieved Matter . | . . . . . . . . . . . . . . . . . . . . Parts Self-Destructed 44 | . . 9 . . . . . . . 4 14 1 16 . . . . . . Prevented 46 | . . . . . . . . . . 9 16 . 21 . . . . . . Parts Restored 1 | . . . . . . . . . . . . . . . . . . . 1 Broken 1 | . . . . . . . . . . . . . . . . . . . 1 Kills | -11 -10 -10 -9 -6 -6 -6 -6 -6 -5 -5 -5 -5 -4 -4 -4 -4 -3 -3 -2 ------- Run | Yrd Mat Sub Scr Fac Ext Cet Arc Hub Fac Upp Upp Zhi Pro Fac Arm Lab Res Qua Res Combat Hostiles Destroyed 253 | . 11 8 . 24 4 11 . 4 6 3 7 . 7 . 25 . 9 32 102 Guns 140 | . 7 8 . 21 4 3 . 2 5 . . . 1 . 25 . 7 21 36 Cannons 26 | . 4 . . . . . . . . . . . . . . . 1 2 19 AOE 54 | . . . . 3 . 6 . 2 . 2 4 . 4 . . . . 6 27 Classes Destroyed 24 | 2 4 1 . 5 . 1 . . . . 2 . 1 . . . 3 1 4 Worker 23 | . . . . 4 . . . 1 4 . . . . 3 . . . 5 6 Builder 17 | . . . . 4 . . . 4 2 . . . . 2 . . . 2 3 Tunneler 6 | 2 . . . 1 . . . 1 1 . . . . 1 . . . . . Hauler 9 | . 2 . . 2 . . . 2 . 1 . . . . . . . . 2 Recycler 13 | 1 . . . 3 . . . 1 1 . . . . . . . 1 2 4 Mechanic 1 | . . . . . . . . . . . . . . . . . . . 1 Operator 1 | . . . . . . . . . . . . . . . . . . 1 . Drone 2 | . . . . . . . . . . . . . . . . . 2 . . Watcher 9 | . 1 . . 1 . 1 . 2 . . . . . 1 . . . 2 1 Swarmer 48 | . 3 3 . . . 4 . . . . . . 2 . 7 . 2 5 22 Saboteur 1 | . . . . . . . . . . . . . . . . . . . 1 Grunt 87 | . 8 . . 10 1 . . 3 2 3 4 . 1 . 1 . 1 16 37 Brawler 6 | . . . . . . . . . . . . . 2 . . . . . 4 Duelist 5 | . . . . . . . . . . . 1 . . . 1 . . . 3 Protector 2 | . . . . . . . . . . . . . . . . . . . 2 Sentry 15 | . . . . 6 2 . . 1 . . 1 . 1 . 2 . . . 2 Demolisher 2 | . . . . . . . . . . . . . . . . . 2 . . Hunter 26 | . . . . 1 1 4 . . 1 . . . 1 . 4 . 1 2 11 Programmer 48 | . . . . 7 . . . . 3 . . . . . 10 . . 9 19 Heavy 1 | . . . . . . . . . . . . . . . . . . . 1 Behemoth 1 | . . . . . . . . . . . 1 . . . . . . . . Cetus Guard 3 | . . . . . . 3 . . . . . . . . . . . . . Striker 1 | . . . . . . . . . . . . . . . . . 1 . . Subdweller 5 | . . 5 . . . . . . . . . . . . . . . . . Scrapoid 1 | . . . . . . 1 . . . . . . . . . . . . . Best Kill Streak 16 | 2 5 3 . 4 1 4 . 4 4 4 4 . 6 2 4 . 2 8 16 Combat Bots Only 13 | . 5 3 . 3 1 4 . 2 2 3 4 . 6 . 4 . 2 8 13 Max Kills in Single Turn 5 | 1 2 1 . 2 1 3 . 3 2 1 3 . 2 1 2 . 1 2 5 Gunslinging 3 | . 1 . . . . . . . . . . . . . 1 . . 1 3 Exploded 4 | . . . . 1 . 3 . 1 . 1 3 . 2 . . . . 2 4 Melee . | . . . . . . . . . . . . . . . . . . . . Uniques/NPCs Destroyed 1 | . . . . . . 1 . . . . . . . . . . . . . A7 (-6/Cetus) Combat | -11 -10 -10 -9 -6 -6 -6 -6 -6 -5 -5 -5 -5 -4 -4 -4 -4 -3 -3 -2 -------- Run | Yrd Mat Sub Scr Fac Ext Cet Arc Hub Fac Upp Upp Zhi Pro Fac Arm Lab Res Qua Res Hostile Shots Fired 1616 | . 54 49 . 295 88 75 . 60 23 7 33 . 42 15 219 . 10 76 570 Missed 568 | . 16 11 . 113 27 25 . 20 10 4 12 . 16 10 71 . 3 24 206 Hits 1048 | . 38 38 . 182 61 50 . 40 13 3 21 . 26 5 148 . 7 52 364 Melee 7 | . . . . . . . . . . . . . 3 . . . . . 4 Projectile 1041 | . 38 38 . 182 61 50 . 40 13 3 21 . 23 5 148 . 7 52 360 AOE 4 | . . . . . . . . . . . . . . . . . 4 . . Critical Strikes 40 | . . 1 . 2 1 9 . 1 2 . 1 . 1 . 4 . . 6 12 Actively Blocked 13 | . . . . . . . . . . . . . . . . . . 4 9 Part Disruptions 2 | . . . . . . . . . . . . . . . . . . . 2 Damage Taken 18236 | . 390 643 . 1845 525 1020 . 529 190 59 435 . 631 102 2460 . 313 1040 8054 Core 2270 | . 59 80 . 147 61 76 . 65 . . 62 . 79 . 207 . . 55 1379 Absorbed by Shields 2492 | . . . . 257 206 130 . 270 84 . . . . . 174 . 143 118 1110 Redirected to Shielding 1072 | . . . . . . . . . . . . . . . 39 . 66 271 696 Regen/Repaired (Parts) 2929 | . . . . 308 11 335 23 259 262 21 22 . 12 251 173 99 79 155 919 Core Remaining (%) 76 | 100 . . 44 . . . . 58 . . . . 79 . . 82 . 95 . Volleys Fired 1129 | 13 50 56 . 151 38 44 . 43 73 5 16 3 17 40 136 2 53 103 286 Largest 5 | 2 2 2 . 2 2 2 . 2 3 3 3 1 3 3 3 1 5 5 5 Hottest 490 | 60 100 100 . 115 100 160 . 160 240 180 240 30 190 240 248 120 410 490 410 Shots Fired 2046 | 26 99 87 . 249 56 68 . 79 137 7 30 3 41 55 288 3 96 235 487 Gun 1657 | 26 72 62 . 200 44 53 . 74 137 3 23 3 37 55 282 1 55 195 335 Cannon 283 | . 26 1 . 46 9 . . . . . . . . . 6 2 38 30 125 Launcher 73 | . . . . 2 . 15 . 5 . 4 7 . 4 . . . . 9 27 Special 33 | . 1 24 . 1 3 . . . . . . . . . . . 3 1 . Kinetic 551 | 13 49 62 . 129 32 5 . 20 5 . 4 3 12 11 54 . 8 51 93 Thermal 1414 | 13 50 25 . 117 21 48 . 54 132 3 19 . 25 44 234 3 85 174 367 Explosive 22 | . . . . 2 . . . . . . . . . . . . . 3 17 Electromagnetic 51 | . . . . . . 15 . 5 . 4 7 . 4 . . . . 6 10 Robot Hit Streak 42 | 10 15 16 . 21 10 10 . 19 10 10 26 11 8 10 20 . 8 14 42 Robot Miss Streak 10 | 1 2 2 . 10 4 4 . 2 4 . 1 . 3 4 4 . 7 3 5 Penetration Max 2 | . . . . . . . . . . . . . . . . . . 2 1 Secondary Targets 30 | . 2 . . 3 . 1 . 1 2 . . . 1 . 3 . 1 3 13 Max Gunslinging Chain 3 | . 1 . . 1 . 1 . 1 1 . . . 1 . 1 . 1 1 3 Shots Hit Robots 1174 | 19 71 47 . 175 32 43 . 59 66 4 24 3 30 16 126 . 37 111 311 Core Hits 740 | 5 28 13 . 182 13 24 . 39 26 9 11 2 21 9 54 . 16 71 217 Critical Kills 22 | . . . . . 1 . . . . . . . . 1 . . 2 1 17 Critical Parts Destroyed 9 | . . 1 . 1 2 . . 1 . . . . . . . . . 1 3 Critical Strikes 54 | . . 1 . 1 4 2 . 6 4 . 3 . 4 1 4 . 2 2 20 Burn 22 | . . . . . 1 2 . 5 4 . 2 . 4 . 4 . . . . Meltdown 12 | . . . . . . . . . . . . . . . . . . . 12 Destroy 20 | . . 1 . 1 3 . . 1 . . 1 . . 1 . . 2 2 8 Melee Attacks 60 | . . . . 22 . . . . . . . . . . . 38 . . . Impact . | . . . . . . . . . . . . . . . . . . . . Slashing . | . . . . . . . . . . . . . . . . . . . . Piercing 60 | . . . . 22 . . . . . . . . . . . 38 . . . Sneak Attacks . | . . . . . . . . . . . . . . . . . . . . Combat Hostiles . | . . . . . . . . . . . . . . . . . . . . Follow-up Attacks . | . . . . . . . . . . . . . . . . . . . . Damage Inflicted 47028 | 190 859 776 . 4744 621 1451 . 2137 1550 671 1094 56 1107 387 3712 . 1114 6527 20032 Guns 27299 | 190 450 776 . 3867 621 718 . 1235 1550 18 349 56 595 387 3712 . 852 4258 7665 Cannons 6754 | . 409 . . 127 . . . . . . . . . . . . 262 567 5389 Explosions 12942 | . . . . 737 . 733 . 894 . 653 745 . 512 . . . . 1702 6966 Melee . | . . . . . . . . . . . . . . . . . . . . Ramming 33 | . . . . 13 . . . 8 . . . . . . . . . . 12 Kinetic 9129 | 56 245 776 . 1985 383 39 . 267 92 . 76 56 176 166 686 . 111 1335 2680 Thermal 26003 | 134 614 . . 2294 238 679 . 968 1458 225 441 . 419 221 3026 . 1003 3490 10793 Explosive 5842 | . . . . 452 . . . . . . . . . . . . . 870 4520 Electromagnetic 6021 | . . . . . . 733 . 894 . 446 577 . 512 . . . . 832 2027 Impact . | . . . . . . . . . . . . . . . . . . . . Slashing . | . . . . . . . . . . . . . . . . . . . . Piercing . | . . . . . . . . . . . . . . . . . . . . Highest Corruption 21 | . . . . 5 5 5 5 16 . . . . . . 10 10 1 14 21 Average Corruption 5 | . . . . 3 5 5 5 9 . . . . . . 7 10 1 4 5 Corruption Purged 6 | . . . . 6 . . . . . . . . . . . . . . . Corruption Blocked . | . . . . . . . . . . . . . . . . . . . . Effects 301 | . . . . 44 31 24 1 12 . . . . . . 87 16 1 38 47 Message Errors 75 | . . . . 10 9 7 . 2 . . . . . . 28 3 . 8 8 Matter Fused 65 | . . . . 7 7 3 . 3 . . . . . . 18 3 . 10 14 Heat Flow Errors 31 | . . . . 8 1 5 . . . . . . . . 9 1 . 3 4 Energy Discharges 39 | . . . . 7 5 4 . 2 . . . . . . 12 3 . 3 3 Parts Rejected 5 | . . . . . 2 . . 1 . . . . . . 1 . . . 1 Parts Fused 2 | . . . . . . . . . . . . . . . 2 . . . . Data Loss (minor) 36 | . . . . 10 2 2 1 2 . . . . . . 5 5 1 4 4 Data Loss (major) 10 | . . . . . 2 1 . 1 . . . . . . 4 . . 1 1 Misfires 11 | . . . . 1 1 1 . 1 . . . . . . 3 1 . 2 1 Alerts 8 | . . . . . 1 1 . . . . . . . . 2 . . 1 3 Misdirections 3 | . . . . . . . . . . . . . . . . . . . 3 Weapon Failures 16 | . . . . 1 1 . . . . . . . . . 3 . . 6 5 Overload Shots 8 | . . . . . 2 . . . 1 . . . . 5 . . . . . Overflow Damage 584 | . . . . 63 . 5 . 44 . 17 22 . 4 . . . . 102 327 Projectiles 152 | . . . . 1 . . . . . . . . . . . . . 40 111 Explosions 432 | . . . . 62 . 5 . 44 . 17 22 . 4 . . . . 62 216 Melee . | . . . . . . . . . . . . . . . . . . . . Knockbacks . | . . . . . . . . . . . . . . . . . . . . Impact . | . . . . . . . . . . . . . . . . . . . . Kinetic . | . . . . . . . . . . . . . . . . . . . . Secondary . | . . . . . . . . . . . . . . . . . . . . Self-Inflicted Damage 367 | . . . . 46 . . . 101 . . . . . . . . . . 220 Shots 11 | . . . . 1 . . . 1 . . . . . . . . . . 9 Rammed 3 | . . . . 1 . . . 1 . . . . . . . . . . 1 Targets Rammed 3 | . . . . 1 . . . 1 . . . . . . . . . . 1 Kicked . | . . . . . . . . . . . . . . . . . . . . Crushed . | . . . . . . . . . . . . . . . . . . . . Highest Temperature 421 | 40 196 . . 306 104 241 . 200 200 130 200 4 200 200 200 155 200 200 421 Average Temperature 85 | 22 65 . . 65 20 150 . 94 90 48 115 2 117 54 96 55 49 114 99 Received Heat Transfer 1770 | . 144 81 . 339 67 10 . 93 57 21 63 . 69 15 45 . . 97 669 Effects 11 | . . . . 2 . . . 1 . . . . 2 1 1 . . 3 1 Energy Bleed 5 | . . . . 1 . . . . . . . . . . . . . 3 1 Interference 6 | . . . . 1 . . . 1 . . . . 2 1 1 . . . . Siege Activations . | . . . . . . . . . . . . . . . . . . . . Martial Activations . | . . . . . . . . . . . . . . . . . . . . Shielding Activations . | . . . . . . . . . . . . . . . . . . . . Robots Disrupted 1 | . . . . . . . . . . . 1 . . . . . . . . Combat Hostiles 1 | . . . . . . . . . . . 1 . . . . . . . . Robots Corrupted 18 | . . . . . . 2 . 1 . 1 1 . 1 . . . . 4 8 Combat Hostiles 16 | . . . . . . 2 . . . 1 1 . 1 . . . . 3 8 Parts Fried 46 | . . . . . 1 6 . 4 . 2 4 . 1 . . . . 11 17 Impact Corruptions . | . . . . . . . . . . . . . . . . . . . . Robots Melted 19 | . . . . . . . . . 1 . 2 . 1 . . . 1 . 14 Combat Hostiles 17 | . . . . . . . . . 1 . 2 . 1 . . . 1 . 12 Parts Melted 107 | . . . . 9 . 8 . 5 7 . 7 . 4 . 16 . 1 12 38 Heat Transferred 37382 | 300 1276 . . 4499 495 1712 . 2696 3455 200 974 . 985 322 4181 . 1188 4184 10915 Parts Sabotaged 1 | . . . . . . . . . . . . . . . . . . . 1 Parts Stolen . | . . . . . . . . . . . . . . . . . . . . Parts Stripped . | . . . . . . . . . . . . . . . . . . . . Power Chain Reactions 11 | . . . . . . 2 . 1 . 1 1 . . . . . . . 6 Alert | -11 -10 -10 -9 -6 -6 -6 -6 -6 -5 -5 -5 -5 -4 -4 -4 -4 -3 -3 -2 ------- Run | Yrd Mat Sub Scr Fac Ext Cet Arc Hub Fac Upp Upp Zhi Pro Fac Arm Lab Res Qua Res Maximum Alert Level 5 | . . . . 2 1 1 . 3 2 . . . . 1 2 . 1 2 5 Low Security (%) 55 | 100 100 . . 75 1 91 100 61 . . . . . 95 66 . 91 39 2 Level 1 25 | . . . . 20 98 8 . 16 79 . . . . 4 24 . 8 34 11 Level 2 10 | . . . . 3 . . . 9 20 . . . . . 9 . . 26 29 Level 3 . | . . . . . . . . 13 . . . . . . . . . . 2 Level 4 5 | . . . . . . . . . . . . . . . . . . . 34 Level 5 2 | . . . . . . . . . . . . . . . . . . . 15 High Security . | . . . . . . . . . . . . . . . . . . . 3 Max Security . | . . . . . . . . . . . . . . . . . . . . Peak Influence 2550 | 10 189 . . 670 326 243 60 842 586 . . . . 225 441 . 344 610 2550 Initial 412 | . . . . . 326 167 60 14 412 . . . . 225 16 . . 184 295 Average 294 | 1 102 . . 130 261 86 52 259 347 . . . . 15 160 . 35 277 1052 Influence Increases 13165 | 15 423 70 . 1292 533 464 . 1008 872 115 264 5 254 296 1735 . 628 1271 3920 Destroy 0b10 Robot/C 6680 | . 220 60 . 580 280 340 . 360 380 100 180 . 220 . 920 . 260 640 2140 Destroy 0b10 Robot/NC 475 | 15 15 . . 80 15 10 . 70 55 5 . 5 . 35 5 . 5 60 100 Destroy Leader 1250 | . 46 10 . 176 32 40 . 110 102 . 30 . 10 2 182 . 50 94 366 Allied During Kill 987 | . . . . 32 113 58 . 56 58 10 24 . 24 . 324 . 159 11 118 Successful Hack 639 | . 36 . . 46 40 . . 11 74 . . . . 19 91 . 28 105 189 Select Force Hacks 50 | . . . . . . . . 50 . . . . . . . . . . . Disable Machine 720 | . . . . 105 15 . . 165 105 . . . . 15 150 . 15 105 45 Destroy Structure 1524 | . 1 . . 153 23 16 . 156 98 . . . . 30 48 . 96 156 747 Advance Influence 150 | . . . . . . . . . . . . . . 150 . . . . . Partial Spotted 30 | . 15 . . 15 . . . . . . . . . . . . . . . Lose Combat Pursuer 360 | . 90 . . 105 15 . . 30 . . 30 . . 45 15 . 15 . 15 Miscellaneous 300 | . . . . . . . . . . . . . . . . . . 100 200 Influence Decreases 10615 | 15 296 197 . 626 900 613 110 206 1128 357 533 80 134 383 1329 439 300 1073 1896 Entered New Map 2314 | . . 62 . . 340 132 90 26 430 217 66 75 . 45 17 439 . 144 231 Time Decay 5148 | 15 286 135 . 396 440 351 20 170 478 140 447 5 84 188 499 . 240 559 695 Lost Part 565 | . 10 . . 60 20 10 . 10 10 . 20 . 30 . 45 . . 30 320 Lost Ally 960 | . . . . 20 100 120 . . 60 . . . 20 . 340 . 60 40 200 Purge Threat 1628 | . . . . 150 . . . . 150 . . . . 150 428 . . 300 450 Squads Dispatched 94 | . 1 . . 17 1 . . 9 6 . . . 1 4 13 . 4 9 29 Investigation 24 | . 1 . . 4 1 . . 1 2 . . . . 1 4 . 3 2 5 Extermination 32 | . . . . 7 . . . . 3 . . . . 3 8 . . 4 7 Reinforcement 20 | . . . . 6 . . . 5 . . . . . . 1 . 1 3 4 Assault 18 | . . . . . . . . 3 1 . . . 1 . . . . . 13 Garrison . | . . . . . . . . . . . . . . . . . . . . Intercept . | . . . . . . . . . . . . . . . . . . . . Searches Triggered . | . . . . . . . . . . . . . . . . . . . . Construction Impeded 6 | . . . . 1 . . . 2 . . . . . . . . . 1 2 Haulers Reinforced 7 | . . . . 4 . . . 2 . . . . . . . . . 1 . Active Scanning Responses . | . . . . . . . . . . . . . . . . . . . . Cargo Convoy Interrupts . | . . . . . . . . . . . . . . . . . . . . Stealth | -11 -10 -10 -9 -6 -6 -6 -6 -6 -5 -5 -5 -5 -4 -4 -4 -4 -3 -3 -2 --------- Run | Yrd Mat Sub Scr Fac Ext Cet Arc Hub Fac Upp Upp Zhi Pro Fac Arm Lab Res Qua Res Distress Signals 20 | . 1 . . 1 1 2 . 2 . . . . 1 . 2 . 6 1 3 Communications Jammed . | . . . . . . . . . . . . . . . . . . . . Distress Signals . | . . . . . . . . . . . . . . . . . . . . Times Spotted 436 | . 19 9 . 42 16 20 . 29 23 5 10 . 19 8 43 . 19 37 137 Peak Tracking Total 12 | . 5 3 . 5 5 5 . 8 4 5 4 . 9 7 5 . 4 6 12 Tactical Retreats 21 | . 5 1 . 5 1 . . 2 . . 2 . . 2 1 . 1 . 1 Traps | -11 -10 -10 -9 -6 -6 -6 -6 -6 -5 -5 -5 -5 -4 -4 -4 -4 -3 -3 -2 ------- Run | Yrd Mat Sub Scr Fac Ext Cet Arc Hub Fac Upp Upp Zhi Pro Fac Arm Lab Res Qua Res Traps Triggered 20 | . 1 . . 3 1 . . . 1 . . . . . 5 . 5 4 . Indirectly . | . . . . . . . . . . . . . . . . . . . . Trap Hack Attempts . | . . . . . . . . . . . . . . . . . . . . Triggered . | . . . . . . . . . . . . . . . . . . . . Disarmed . | . . . . . . . . . . . . . . . . . . . . Reprogrammed . | . . . . . . . . . . . . . . . . . . . . Reused . | . . . . . . . . . . . . . . . . . . . . Traps Extracted . | . . . . . . . . . . . . . . . . . . . . Installed . | . . . . . . . . . . . . . . . . . . . . Triggered . | . . . . . . . . . . . . . . . . . . . . Machines | -11 -10 -10 -9 -6 -6 -6 -6 -6 -5 -5 -5 -5 -4 -4 -4 -4 -3 -3 -2 ---------- Run | Yrd Mat Sub Scr Fac Ext Cet Arc Hub Fac Upp Upp Zhi Pro Fac Arm Lab Res Qua Res Machines Disabled 59 | . . 1 . 7 4 . . 11 7 . . . 1 2 10 5 1 7 3 Max in Single Turn 9 | . . 1 . 2 1 . . 9 1 . . . . 1 1 1 1 1 1 Garrison Access 7 | . . . . 1 . . . 1 . . . . . . . . 3 1 1 Network Hub 2 | . . . . . . . . 2 . . . . . . . . . . . Machines Repaired . | . . . . . . . . . . . . . . . . . . . . Machines Dismantled . | . . . . . . . . . . . . . . . . . . . . Machines Sabotaged 1 | . . . . . . . . 1 . . . . . . . . . . . Overloaded Fab Kills . | . . . . . . . . . . . . . . . . . . . . Hacking | -11 -10 -10 -9 -6 -6 -6 -6 -6 -5 -5 -5 -5 -4 -4 -4 -4 -3 -3 -2 --------- Run | Yrd Mat Sub Scr Fac Ext Cet Arc Hub Fac Upp Upp Zhi Pro Fac Arm Lab Res Qua Res Machines Accessed 122 | . 8 1 4 17 13 . 1 2 13 . 2 5 . 10 10 . 8 11 17 Terminals 71 | . 8 . . 9 12 . . 2 7 . 1 . . 8 6 . 2 7 9 Fabricators 9 | . . . . 1 . . . . 1 . . . . 1 4 . . . 2 Repair Stations 5 | . . . . 1 . . . . . . . . . 1 . . . 1 2 Recycling Units 11 | . . . . 3 1 . . . 2 . . . . . . . 3 . 2 Scanalyzers 9 | . . . . 2 . . . . 2 . . . . . . . 1 2 2 Garrison Access 5 | . . . . 1 . . . . 1 . . . . . . . 2 1 . Total Hacks 496 | . 30 1 14 42 20 . 9 7 88 . 2 15 . 54 65 . 15 43 91 Successful 304 | . 19 1 14 21 12 . 9 4 35 . 2 15 . 39 44 . 10 24 55 Failed 190 | . 10 . . 21 8 . . 3 53 . . . . 14 21 . 5 19 36 Catastrophic 27 | . 2 . . 2 . . . . 11 . . . . 1 5 . . 3 3 Database Lockouts 2 | . 1 . . . . . . . . . . . . 1 . . . . . Manual 212 | . 24 . . 23 7 . . 7 40 . . . . 30 31 . 7 14 29 Terminals 328 | . 30 . . 29 19 . . 7 61 . 1 . . 44 41 . 7 30 59 Fabricators 36 | . . . . 1 . . . . 1 . . . . 2 24 . . . 8 Repair Stations 21 | . . . . 4 . . . . . . . . . 8 . . . 3 6 Recycling Units 15 | . . . . 3 1 . . . 3 . . . . . . . 4 . 4 Scanalyzers 48 | . . . . 4 . . . . 21 . . . . . . . 2 7 14 Garrison Access 8 | . . . . 1 . . . . 2 . . . . . . . 2 3 . Terminal Hacks 148 | . 8 1 14 3 9 . 9 . 15 . 2 15 . 20 17 . 3 12 20 Record 21 | . . . 8 . . . 9 . . . 1 3 . . . . . . . Part Schematic 11 | . . . . . . . . . 1 . . 4 . 1 2 . . . 3 Robot Schematic 1 | . . . . . . . . . . . . . . . . . . 1 . Robot Analysis 20 | . 2 . 5 . . . . . 3 . . 4 . 2 . . 1 3 . Prototype ID Bank 11 | . 2 . . . . . . . 2 . . 4 . 3 . . . . . Open Door 10 | . . 1 . . 8 . . . . . 1 . . . . . . . . Branch Access Points 5 | . . . . . . . . . . . . . . 2 . . 1 1 1 Emergency Access Points 1 | . . . . . . . . . . . . . . . . . . 1 . Machine Index 2 | . . . . . . . . . . . . . . 1 . . . . 1 Terminal Index 6 | . 1 . . 1 1 . . . 1 . . . . . 1 . . . 1 Fabricator Index 1 | . . . . . . . . . . . . . . . 1 . . . . Recycling Unit Index 2 | . . . . . . . . . 1 . . . . . 1 . . . . Garrison Index 2 | . . . . . . . . . . . . . . . 1 . . 1 . Alert Level 14 | . . . . . . . . . 3 . . . . 2 2 . 1 1 5 Unreport Threat 14 | . . . . 1 . . . . 1 . . . . 1 3 . . 3 5 Locate Traps 15 | . 3 . . 1 . . . . 2 . . . . 3 3 . . 1 2 Recall Investigation 2 | . . . . . . . . . . . . . . 1 1 . . . . Recall Extermination 5 | . . . . . . . . . 1 . . . . 2 . . . . 2 Recall Reinforcements 1 | . . . . . . . . . . . . . . . 1 . . . . Zone Layout 3 | . . . . . . . . . . . . . . 2 1 . . . . Proto ID Catalog 1 | . . . 1 . . . . . . . . . . . . . . . . Fabricator Hacks 31 | . . . . 1 . . . . 1 . . . . 2 21 . . . 6 Network Status 1 | . . . . . . . . . . . . . . . . . . . 1 Load Schematic 13 | . . . . . . . . . . . . . . 1 10 . . . 2 Build 17 | . . . . 1 . . . . 1 . . . . 1 11 . . . 3 Repair Station Hacks 16 | . . . . 3 . . . . . . . . . 8 . . . 2 3 Scan Component 9 | . . . . 2 . . . . . . . . . 4 . . . 1 2 Repair 7 | . . . . 1 . . . . . . . . . 4 . . . 1 1 Recycling Unit Hacks . | . . . . . . . . . . . . . . . . . . . . Scanalyzer 31 | . . . . 2 . . . . 9 . . . . . . . 2 7 11 Insert Component 11 | . . . . . . . . . 4 . . . . . . . . 3 4 Analyze 11 | . . . . . . . . . 3 . . . . . . . . 4 4 Retrieve Study 9 | . . . . 2 . . . . 2 . . . . . . . 2 . 3 Garrison Access Hacks 4 | . . . . 1 . . . . . . . . . . . . 2 1 . Seal Access 4 | . . . . 1 . . . . . . . . . . . . 2 1 . Unauthorized Hacks 74 | . 11 . . 11 3 . . 4 10 . . . . 9 6 . 3 2 15 Terminals 63 | . 11 . . 8 2 . . 4 8 . . . . 9 6 . . 2 13 Track 7 | . 2 . . . . . . . 2 . . . . . 2 . . . 1 Assimilate 5 | . . . . 1 . . . . . . . . . . 1 . . 1 2 Botnet 15 | . 1 . . 1 2 . . 2 . . . . . 2 2 . . 1 4 Disrupt 4 | . 2 . . . . . . 1 . . . . . 1 . . . . . Operators 6 | . 1 . . 1 . . . . 1 . . . . 1 1 . . . 1 Skim 25 | . 5 . . 5 . . . . 5 . . . . 5 . . . . 5 Sabotage 1 | . . . . . . . . 1 . . . . . . . . . . . Fabricators . | . . . . . . . . . . . . . . . . . . . . Repair Stations . | . . . . . . . . . . . . . . . . . . . . Recycling Units 11 | . . . . 3 1 . . . 2 . . . . . . . 3 . 2 Fedlink 7 | . . . . 2 . . . . 2 . . . . . . . 2 . 1 Scrapoids 4 | . . . . 1 1 . . . . . . . . . . . 1 . 1 Scanalyzers . | . . . . . . . . . . . . . . . . . . . . Garrison Access . | . . . . . . . . . . . . . . . . . . . . Data Cores Recovered . | . . . . . . . . . . . . . . . . . . . . Used . | . . . . . . . . . . . . . . . . . . . . Hacking Detections 73 | . 8 . . 12 5 . . 2 9 . . . . 5 8 . 2 8 14 Full Trace Events 7 | . 1 . . 1 . . . . . . . . . 1 2 . . . 2 Feedback Events . | . . . . . . . . . . . . . . . . . . . . Feedback Blocked . | . . . . . . . . . . . . . . . . . . . . Robot Schematics Acquired 1 | . . . . . . . . . . . . . . . . . . 1 . Robots Built 10 | . . . . 1 . . . . 3 . . . . . 3 . . . 3 Authchips . | . . . . . . . . . . . . . . . . . . . . Time 226 | . . . . 58 . . . . 44 . . . . . 62 . . . 62 Total Robot Build Rating 57 | . . . . 3 . . . . 12 . . . . . 21 . . . 21 Part Schematics Acquired 20 | . . . . . . . . . 3 . . 4 . 1 2 . . 3 7 Parts Built 14 | . . . . . . . . . . . . . . 1 11 . . . 2 Authchips 8 | . . . . . . . . . . . . . . . 8 . . . . Time 1023 | . . . . . . . . . . . . . . 152 747 . . . 124 Total Part Build Rating 86 | . . . . . . . . . . . . . . 5 67 . . . 14 Part Studies Acquired 9 | . . . . 2 . . . . 2 . . . . . . . 2 . 3 Parts Repaired 7 | . . . . 1 . . . . . . . . . 4 . . . 1 1 Time 345 | . . . . 44 . . . . . . . . . 249 . . . 26 26 Parts Recycled . | . . . . . . . . . . . . . . . . . . . . Recycled Matter . | . . . . . . . . . . . . . . . . . . . . Retrieved Matter . | . . . . . . . . . . . . . . . . . . . . Retrieved Components . | . . . . . . . . . . . . . . . . . . . . Parts Scanalyzed 9 | . . . . . . . . . 2 . . . . . . . . 3 4 Part Schematics Acquired 9 | . . . . . . . . . 2 . . . . . . . . 3 4 Parts Damaged 1 | . . . . . . . . . . . . . . . . . . 1 . Bothacking | -11 -10 -10 -9 -6 -6 -6 -6 -6 -5 -5 -5 -5 -4 -4 -4 -4 -3 -3 -2 ------------ Run | Yrd Mat Sub Scr Fac Ext Cet Arc Hub Fac Upp Upp Zhi Pro Fac Arm Lab Res Qua Res Used RIF Installer . | . . . . . . . . . . . . . . . . . . . . Robots Hacked . | . . . . . . . . . . . . . . . . . . . . Non-combat . | . . . . . . . . . . . . . . . . . . . . Combat . | . . . . . . . . . . . . . . . . . . . . Robot Hacks Applied . | . . . . . . . . . . . . . . . . . . . . Relay Couplers Released 7 | . . . . . . . . 1 . . . . . . . . 2 . 4 Machine Destruction 4 | . . . . . . . . 1 . . . . . . . . 2 . 1 Programmers 3 | . . . . . . . . . . . . . . . . . . . 3 Fabnet Peak Effective % . | . . . . . . . . . . . . . . . . . . . . Robots Rewired 15 | . . . . . . . . . . . . . . . 15 . . . . Allies Hacked 5 | . . . . . . . . . . . . . . . 3 . 1 1 . Hacks Repelled 2 | . . . . . . . . . . . . . . . 1 . . . 1 Allies | -11 -10 -10 -9 -6 -6 -6 -6 -6 -5 -5 -5 -5 -4 -4 -4 -4 -3 -3 -2 -------- Run | Yrd Mat Sub Scr Fac Ext Cet Arc Hub Fac Upp Upp Zhi Pro Fac Arm Lab Res Qua Res Total Allies 74 | . . . . 7 13 1 . . 3 . . . . . 26 . 5 1 18 Largest Group 10 | . . . . 5 8 8 1 1 4 1 1 1 1 . 10 4 8 2 7 Highest-Rated Group 500 | . . . . 140 341 340 139 139 175 109 109 109 109 . 481 253 500 128 320 Highest-Rated Ally 159 | . . . . 28 159 159 139 139 131 109 109 109 109 . 64 64 67 64 64 Initial UFD Resources 66 | . . . . 22 33 30 30 30 33 47 47 47 50 50 50 50 53 64 66 Total Orders 33 | . . . . 9 . 2 . 2 . . . . 2 . . 2 2 2 12 STAY 16 | . . . . 4 . 1 . 1 . . . . 1 . . 1 1 1 6 FOLLOW 15 | . . . . 3 . 1 . 1 . . . . 1 . . 1 1 1 6 AID 2 | . . . . 2 . . . . . . . . . . . . . . . Ally Attacks 590 | . . . . 34 120 68 . 31 30 3 8 . 13 . 138 . 63 3 79 Total Damage 17353 | . . . . 1317 2632 1575 . 1757 1463 186 453 . 532 . 3999 . 1452 130 1857 Kills 108 | . . . . 8 14 8 . 17 16 2 2 . 4 . 22 . 6 . 9 Allies Corrupted 7 | . . . . . . . . . . . . . . . 2 . . 2 3 Allies Melted 2 | . . . . . 1 . . . . . . . . . 1 . . . . Intel | -11 -10 -10 -9 -6 -6 -6 -6 -6 -5 -5 -5 -5 -4 -4 -4 -4 -3 -3 -2 ------- Run | Yrd Mat Sub Scr Fac Ext Cet Arc Hub Fac Upp Upp Zhi Pro Fac Arm Lab Res Qua Res Active Infowar (turns) 18551 | 68 718 7 579 3896 1088 78 . 163 989 287 1538 189 254 1023 1696 573 1707 1445 2253 Sensors 15059 | . . . . 3571 42 39 . 163 989 287 1538 189 254 1023 1696 573 1707 1445 1543 Traps 4869 | . . . 579 3124 1088 78 . . . . . . . . . . . . . Seismic 793 | 68 718 7 . . . . . . . . . . . . . . . . . Cloaking 780 | . . . . . . . . . . . . . . . . . . . 780 Jamming 66 | . . . . . . . . . . . . . . . . . . . 66 Robot Analysis Total 20 | . 2 . 5 . . . . . 3 . . 4 . 2 . . 1 3 . Derelict Logs Recovered 6 | . . 3 2 . . . . . . . 1 . . . . . . . . Drone Launches . | . . . . . . . . . . . . . . . . . . . . Drone Recoveries . | . . . . . . . . . . . . . . . . . . . . Exploration | -11 -10 -10 -9 -6 -6 -6 -6 -6 -5 -5 -5 -5 -4 -4 -4 -4 -3 -3 -2 ------------- Run | Yrd Mat Sub Scr Fac Ext Cet Arc Hub Fac Upp Upp Zhi Pro Fac Arm Lab Res Qua Res Turns Passed 27716 | 118 804 2686 2680 3968 1091 1076 46 353 1235 298 1626 194 406 1080 3071 573 1781 1645 2985 Spaces Moved 17837 | 64 386 1197 2245 2008 876 840 41 236 861 259 887 157 275 762 2215 182 1278 1076 1992 Core 51 | 1 . . . . . . . . . . . . . . . . . . 50 Treads 968 | . 17 749 . 202 . . . . . . . . . . . . . . . Legs . | . . . . . . . . . . . . . . . . . . . . Wheels 16818 | 63 369 448 2245 1806 876 840 41 236 861 259 887 157 275 762 2215 182 1278 1076 1942 Hover . | . . . . . . . . . . . . . . . . . . . . Flight . | . . . . . . . . . . . . . . . . . . . . Fastest Speed 50 | 50 90 100 110 93 92 88 106 92 92 106 106 114 114 106 100 100 100 100 50 Average Speed 114 | 99 111 190 118 123 94 93 106 94 102 106 107 114 114 120 104 101 100 103 108 Slowest Speed 2300 | 100 240 240 150 240 100 106 106 106 111 106 114 114 114 125 150 105 105 105 2300 Overloaded Moves . | . . . . . . . . . . . . . . . . . . . . Propulsion Burnouts . | . . . . . . . . . . . . . . . . . . . . Robots Hopped 1 | . . . . . . . . . . . . 1 . . . . . . . Potential Cave-ins . | . . . . . . . . . . . . . . . . . . . . Cave-ins Triggered . | . . . . . . . . . . . . . . . . . . . . Teleports 3 | . . . . . . . . . . . . . 1 . . . . . 2 Exploration Rate (%) 51 | 3 54 37 91 40 77 72 57 23 25 56 86 60 44 17 47 74 37 81 52 Regions Visited 19 Branch Regions 13 Pre-discovered Areas 12 | . 2 1 1 2 . . . . 1 . . 1 . 3 . . . . 1 Known Exits Taken 16 | . 1 . . 1 1 1 1 1 1 1 1 1 1 1 1 1 1 1 . Unknown Exits Taken 3 | 1 . 1 1 . . . . . . . . . . . . . . . . Scrap Searched 18 | . . 8 7 . . . . . . 1 2 . . . . . . . . Spaces Dug 159 | . 1 . . 41 8 . . . 10 . 2 . . 11 16 . 18 31 21 Terrain Destroyed 904 | . 1 4 . 142 8 15 . 171 27 7 4 . . 15 31 . 45 99 335 Melee 16 | . . . . 16 . . . . . . . . . . . . . . . Projectile 350 | . 1 4 . 41 8 . . . 27 . 2 . . 15 31 . 45 66 110 AOE 538 | . . . . 85 . 15 . 171 . 7 2 . . . . . . 33 225 Terrain Rammed . | . . . . . . . . . . . . . . . . . . . . Walls Destroyed . | . . . . . . . . . . . . . . . . . . . . Machines Disabled . | . . . . . . . . . . . . . . . . . . . . Actions | -11 -10 -10 -9 -6 -6 -6 -6 -6 -5 -5 -5 -5 -4 -4 -4 -4 -3 -3 -2 --------- Run | Yrd Mat Sub Scr Fac Ext Cet Arc Hub Fac Upp Upp Zhi Pro Fac Arm Lab Res Qua Res Total 23565 | 91 660 1475 2280 3159 1100 1092 43 310 1130 276 1542 168 350 876 2797 496 1699 1499 2522 Wait 3613 | . 189 172 . 867 132 99 3 11 158 1 623 . 49 61 299 239 306 271 133 Move 17817 | 63 385 1196 2244 2007 875 839 40 236 860 258 886 154 274 761 2214 181 1277 1075 1992 Hop 1 | . . . . . . . . . . . . 1 . . . . . . . Pick Up 165 | 7 9 13 12 7 4 30 . . 6 3 3 2 1 3 26 14 7 7 11 Fast Attach 99 | 7 . 1 2 19 11 14 . 4 5 1 . 4 . 3 7 . 3 1 17 Attach 79 | . 1 1 . 6 4 5 . . 2 1 2 . 4 1 17 6 4 5 20 Detach 17 | . . . . 3 4 3 . 1 . 1 . . . . 3 . 1 . 1 Swap 295 | 1 23 16 4 52 10 13 . 14 19 3 7 1 5 7 25 4 16 34 41 Drop 180 | . 3 8 18 16 14 45 . 1 7 3 5 3 . . 14 12 8 3 20 Fire 1129 | 13 50 56 . 151 38 44 . 43 73 5 16 3 17 40 136 2 53 103 286 Melee 60 | . . . . 22 . . . . . . . . . . . 38 . . . Ram 1 | . . . . . . . . . . . . . . . . . . . 1 Kick . | . . . . . . . . . . . . . . . . . . . . Crush 1 | . . . . 1 . . . . . . . . . . . . . . . Escape Stasis 48 | . . . . 8 8 . . . . . . . . . 8 . 24 . . Rewire 48 | . . . . . . . . . . . . . . . 48 . . . . Trap . | . . . . . . . . . . . . . . . . . . . . Miscellaneous 12 | . . 12 . . . . . . . . . . . . . . . . . Route ------- -11/Scrapyard -10/Materials (discovered 3 exits: *Mat / *Min / *Sub) -10/Subcaves (discovered 2 exits: [*Mat] / *Scr) -9/Scraptown (discovered 2 exits: *Fac x2) -6/Factory (discovered 7 exits: *Fac x3 / *Low x2 / *Ext x2) -6/Extension (discovered 2 exits: *Fac / *Cet) -6/Cetus (discovered 3 exits: *Fac x2 / *Arc) -6/Archives (discovered 3 exits: Fac / *Hub x2) -6/Hub_04(d) -5/Factory (discovered 4 exits: *Fac x3 / *Upp) -5/Upper Caves -5/Upper Caves (discovered 2 exits: *Fac / *Zhi) -5/Zhirov -4/Proximity Caves -4/Factory (discovered 6 exits: *Res x3 / Upp x2 / *Arm) -4/Armory -4/Lab -3/Research (discovered 2 exits: *Qua x2) -3/Quarantine -2/Research (discovered 5 exits: *Acc x3 / Tes x2) History --------- Turn | Location | Event 14 | -11/Scrapyard | Discovered new exit (range 16) 119 | -11/Scrapyard | Entered Materials 339 | -10/Materials | Build established: Mutant 462 | -10/Materials | Discovered new exit (range 9) 608 | -10/Materials | Identified exit to Mines 608 | -10/Materials | Identified exit to Materials 608 | -10/Materials | Identified exit to Subcaves 663 | -10/Materials | Learned location of Mines (-8) 669 | -10/Materials | Central database locked down 709 | -10/Materials | Learned location of 2 exits from Mines 747 | -10/Materials | Learned 4 Subcaves zone layouts 795 | -10/Materials | Learned Recycling recycling unit intel 854 | -10/Materials | Learned location of Mines (-9) 923 | -10/Materials | Entered Subcaves 924 | -10/Subcaves | Approached by a straggling Scientist 978 | -10/Subcaves | Visited 4L-MR0's lab 982 | -10/Subcaves | Learned Materials machine intel 1234 | -10/Subcaves | Shifting Twisted Machinery released Barrage Gun 1257 | -10/Subcaves | A swath of the cavern ceiling suddenly collapsed 1613 | -10/Subcaves | Learned Materials terminal intel 1807 | -10/Subcaves | Discovered new exit (range 12) 1909 | -10/Subcaves | Shifting Twisted Machinery released Sub. Power Source 1916 | -10/Subcaves | Shifting Twisted Machinery released Sub. Beam Cannon 2891 | -10/Subcaves | Core integrity fell below 50% 3426 | -10/Subcaves | Found Prototype Device 3430 | -10/Subcaves | Found Prototype Wheel 3609 | -10/Subcaves | Entered Scraptown 3705 | -9/Scraptown | Learned location of Extension (-6) 3825 | -9/Scraptown | Heard Great Nut preacher, LISTEN AND RECITE! 3856 | -9/Scraptown | Scanned Subdweller tech in exchange for log data 3858 | -9/Scraptown | Learned 12 Research zone layouts 3875 | -9/Scraptown | Discovered new exit (range 7) 3964 | -9/Scraptown | Visited The Evicted 4004 | -9/Scraptown | Visited Awakened 4026 | -9/Scraptown | Visited Cyclists 4044 | -9/Scraptown | Visited UFD Registry 4044 | -9/Scraptown | Registered with UFD as "Kinetinuts" 4066 | -9/Scraptown | Entered Cyclist Reading Room 4127 | -9/Scraptown | Visited SPCMW 4155 | -9/Scraptown | Visited Assassins FH 4171 | -9/Scraptown | Visited Comm Corps 4546 | -9/Scraptown | Visited DA-N13 Charitable Foundation 4550 | -9/Scraptown | Found DCF Scrap (31 items) 4632 | -9/Scraptown | Visited Botcube Research 4655 | -9/Scraptown | Visited Analyses Database 4763 | -9/Scraptown | Visited Abandonware Association 4776 | -9/Scraptown | Learned abandonware demo "REPAIR.EXE" 4776 | -9/Scraptown | Learned abandonware demo "ERRANTS.EXE" 4800 | -9/Scraptown | Visited A0-MCA Data Center 4807 | -9/Scraptown | Given a B+ rating by A0-MCA 4826 | -9/Scraptown | Found A0-MCA's Component Scanner 4850 | -9/Scraptown | Visited Derelict Rescue Squad 4860 | -9/Scraptown | Found DRS Beacon 4880 | -9/Scraptown | Build established: Derelict-Mutant 4906 | -9/Scraptown | Visited Science Guys 4945 | -9/Scraptown | Visited Curators Association 4983 | -9/Scraptown | Visited Junk Repository 5121 | -9/Scraptown | Delivered Scrap Shield to a Scientist 5335 | -9/Scraptown | Discovered new exit (range 5) 5572 | -9/Scraptown | Found Lrg. Botcube 6083 | -9/Scraptown | Found Scrap Suit 6224 | -9/Scraptown | Met Optimus 6224 | -9/Scraptown | Accepted into 0bPrime 6289 | -9/Scraptown | Entered Factory 6289 | -6/Factory | Evolved 8 slots: Propulsion x2, Utility x6 6651 | -6/Factory | Build established: Derelict-Skirmisher 7076 | -6/Factory | Discovered new exit (range 8) 7496 | -6/Factory | Spotted B-75 Beast 7800 | -6/Factory | Fabricated M-28 Smith (x1) 7926 | -6/Factory | Loaded intel: 8 recycling unit locations 7974 | -6/Factory | Build established: Mutant 8028 | -6/Factory | Discovered new exit (range 15) 8225 | -6/Factory | Repaired Broken Arm. Wheel 8410 | -6/Factory | Learned location of Protoforge (-2) 9105 | -6/Factory | Discovered new exit (range 10) 9128 | -6/Factory | Identified exit to Lower Caves 9540 | -6/Factory | Identified exit to Extension 9540 | -6/Factory | Identified exit to Factory 9596 | -6/Factory | Learned location of 1 exit from Lower Caves 9640 | -6/Factory | Loaded intel: 6 fabricator locations 9656 | -6/Factory | Build established: Skirmisher 9672 | -6/Factory | Learned 2 Proximity Caves zone layouts 9694 | -6/Factory | Learned location of 2 exits from Archives 9707 | -6/Factory | Learned 4 Extension zone layouts 9731 | -6/Factory | Learned Extension emergency access door positions 9766 | -6/Factory | Learned location of Warlord (-4) 10070 | -6/Factory | Discovered exit to Factory (range 11) 10120 | -6/Factory | Scrapoid reinforcements arrived 10162 | -6/Factory | P-60 Hacker assimilated allied 06F04-D 10173 | -6/Factory | P-60 Hacker assimilated allied 06F01-D 10195 | -6/Factory | Found Scrap Suit 10208 | -6/Factory | Found Scrap Suit 10211 | -6/Factory | Attached CPS modules to 06F03-D 10257 | -6/Factory | Entered Extension 10257 | -6/Extension | Accompanied by 1 ally 10310 | -6/Extension | Rescued a captive Derelict 10383 | -6/Extension | Rescued a captive Derelict 10384 | -6/Extension | Rescued a captive Derelict 10441 | -6/Extension | Rescued A7 10469 | -6/Extension | Build established: Scavenger-Scrapper 10487 | -6/Extension | Rescued a captive Derelict 10515 | -6/Extension | Rescued a captive Derelict 10517 | -6/Extension | Attached CPS modules to A7 10541 | -6/Extension | Rescued a captive Derelict 10593 | -6/Extension | Spotted B-75 Beast 10662 | -6/Extension | Allies destroyed B-75 Beast 10683 | -6/Extension | Spotted B-75 Beast 10693 | -6/Extension | Allies destroyed B-75 Beast 10942 | -6/Extension | Scrapoid reinforcements arrived 10943 | -6/Extension | Attached CPS modules to 06E10-D 10945 | -6/Extension | Attached CPS modules to 06E07-D 11145 | -6/Extension | Rescued a captive Derelict 11158 | -6/Extension | Rescued a captive Derelict 11278 | -6/Extension | Discovered new exit (range 16) 11287 | -6/Extension | Discovered exit to Factory (range 15) 11328 | -6/Extension | Identified exit to Cetus 11348 | -6/Extension | Entered Cetus 11348 | -6/Cetus | Accompanied by 8 allies (A7) 11353 | -6/Cetus | Acquired a Cetus Manufacturing Module code from A7 11374 | -6/Cetus | Spotted Cetus Guard 11375 | -6/Cetus | Spotted Cetus Guard 11379 | -6/Cetus | Spotted Cetus Guard 11381 | -6/Cetus | Spotted Cetus Guard 11392 | -6/Cetus | Allies destroyed Cetus Guard 11396 | -6/Cetus | Allies destroyed A7 11398 | -6/Cetus | Allies destroyed Cetus Guard 11399 | -6/Cetus | Allies destroyed Cetus Guard 11400 | -6/Cetus | Allies destroyed Cetus Guard 11419 | -6/Cetus | Extracted ID and sensor layout for unrecognized location from A7's data core 11426 | -6/Cetus | Identified Sfc. Transmogrifier 11430 | -6/Cetus | Lost 3 allies 11430 | -6/Cetus | Found Prototype Protection 11430 | -6/Cetus | Identified Med. Regenerative Plating 11509 | -6/Cetus | Discovered exit to Factory (range 15) 11578 | -6/Cetus | Discovered new exit (range 16) 11680 | -6/Cetus | Spotted Cetus Guard 11680 | -6/Cetus | Spotted Cetus Guard 11684 | -6/Cetus | Spotted Cetus Guard 11685 | -6/Cetus | Spotted Cetus Guard 11690 | -6/Cetus | Allies destroyed Cetus Guard 11696 | -6/Cetus | Destroyed Cetus Guard 11707 | -6/Cetus | Destroyed Cetus Guard 11719 | -6/Cetus | Destroyed Cetus Guard 11729 | -6/Cetus | Lost 5 allies 11735 | -6/Cetus | Discovered exit to Factory (range 15) 11740 | -6/Cetus | Met Revision 17 11900 | -6/Cetus | Found Scrap Suit 12098 | -6/Cetus | Security sweep announced 12201 | -6/Cetus | Lrg. Botcube activated 12339 | -6/Cetus | Found Scrap Suit 12423 | -6/Cetus | Identified exit to Archives 12424 | -6/Cetus | Entered Archives 12424 | -6/Archives | Accompanied by 1 ally 12425 | -6/Archives | Identified exit to Hub_04(d) 12440 | -6/Archives | Met Zhirov 12446 | -6/Archives | Reinforcements dispatched to Archives 12453 | -6/Archives | Read partially decrypted archive contents 12455 | -6/Archives | Discovered exit to Hub_04(d) (range 15) 12470 | -6/Archives | Entered Hub_04(d) 12470 | -6/Hub_04(d) | Accompanied by 1 ally 12519 | -6/Hub_04(d) | System corruption reached 10% 12627 | -6/Hub_04(d) | Discovered exit to Factory (range 16) 12694 | -6/Hub_04(d) | Spotted B-75 Beast 12775 | -6/Hub_04(d) | Network Hub disabled 12812 | -6/Hub_04(d) | Network Hub disabled 12820 | -6/Hub_04(d) | First assault squad dispatched 12823 | -6/Hub_04(d) | Entered Factory 12823 | -5/Factory | Accompanied by 1 ally 12823 | -5/Factory | Evolved 2 slots: Utility x1, Weapon x1 13234 | -5/Factory | Loaded intel: 8 recycling unit locations 13342 | -5/Factory | Fabricated B-48 Gladiator? 13594 | -5/Factory | Discovered new exit (range 5) 13598 | -5/Factory | Identified exit to Factory 13646 | -5/Factory | Learned Research security intel 13740 | -5/Factory | Learned location of Upper Caves (-4) 13751 | -5/Factory | Learned Extension terminal intel 13767 | -5/Factory | Learned 2 Armory zone layouts 13793 | -5/Factory | Learned Research recycling unit intel 13853 | -5/Factory | Allied Derelicts emerged from ambush trap array 13879 | -5/Factory | Loaded intel: 87 trap records 13942 | -5/Factory | Discovered new exit (range 16) 13993 | -5/Factory | Identified exit to Upper Caves 14023 | -5/Factory | First assault squad dispatched 14058 | -5/Factory | Entered Upper Caves 14058 | -5/Upper Caves | Accompanied by 1 ally 14059 | -5/Upper Caves | Encountered a Warlord checkpoint 14059 | -5/Upper Caves | Identified exit to Upper Caves 14060 | -5/Upper Caves | UFD Scientist delivered a prototype 14061 | -5/Upper Caves | Found Prototype Protection 14333 | -5/Upper Caves | Found Imp. Powered Armor 14356 | -5/Upper Caves | Entered another Upper Caves area 14356 | -5/Upper Caves | Accompanied by 1 ally 14363 | -5/Upper Caves | Discovered exit to Factory (range 8) 14636 | -5/Upper Caves | Attracted the attention of an 0b10 checkpoint 14718 | -5/Upper Caves | Encountered a Warlord checkpoint 14809 | -5/Upper Caves | Learned Factory terminal intel 14986 | -5/Upper Caves | Spotted B-75 Beast 15792 | -5/Upper Caves | Discovered new exit (range 5) 15795 | -5/Upper Caves | Identified exit to Zhirov 15818 | -5/Upper Caves | Destroyed B-75 Beast 15982 | -5/Upper Caves | Entered Zhirov 15982 | -5/Zhirov | Accompanied by 1 ally 15982 | -5/Zhirov | Discovered new exit (range 3) 16024 | -5/Zhirov | Learned location of Quarantine (-3) 16058 | -5/Zhirov | Found Alien Artifact 16058 | -5/Zhirov | Identified Integrated Reactor 16058 | -5/Zhirov | Installed Integrated Reactor, increased core energy generation (+10) 16075 | -5/Zhirov | Found Alien Artifact 16173 | -5/Zhirov | Identified exit to Proximity Caves 16176 | -5/Zhirov | Entered Proximity Caves 16176 | -4/Proximity Caves | Accompanied by 1 ally 16179 | -4/Proximity Caves | Spotter reported a threat 16519 | -4/Proximity Caves | Attracted the attention of an 0b10 outpost 16566 | -4/Proximity Caves | Spotted B-86 Titan 16579 | -4/Proximity Caves | Identified Transdimensional Reconstructor 16579 | -4/Proximity Caves | Warped through subspace 16579 | -4/Proximity Caves | Discovered exit to Factory (range 2) 16582 | -4/Proximity Caves | Entered Factory 16582 | -4/Factory | Evolved 2 slots: Utility x2 16582 | -4/Factory | Identified Enh. Scrap Shield 16583 | -4/Factory | Identified exit to Research 16583 | -4/Factory | Identified exit to Upper Caves 16584 | -4/Factory | Loaded intel: 26 terminal locations 16609 | -4/Factory | Lost 3 parts (1u2w) 16629 | -4/Factory | Watched by a mysterious "MATRIX" hacker 16661 | -4/Factory | Discovered exit to Research (range 4) 16671 | -4/Factory | Identified exit to Armory 16749 | -4/Factory | Repaired Ovr. Barrage Gun 16795 | -4/Factory | Central database locked down 16823 | -4/Factory | Repaired Quantum Reactor? 16880 | -4/Factory | Learned 4 Quarantine zone layouts 16938 | -4/Factory | Repaired Adv. Variable Charge Gun? 16954 | -4/Factory | Learned 4 Research zone layouts 17010 | -4/Factory | Repaired Ovr. Pulse Rifle 17019 | -4/Factory | Learned location of Armory (-4) 17116 | -4/Factory | Learned location of Testing (-2) 17167 | -4/Factory | Learned Research security intel 17344 | -4/Factory | Fabricated Exp. Propulsion Shielding? 17662 | -4/Factory | Entered Armory 18354 | -4/Armory | Fabricated Exp. Weapon Shielding? 18624 | -4/Armory | Build established: Hacker-Scrapper 18698 | -4/Armory | Spotted B-86 Titan 18731 | -4/Armory | Identified Maxwheels 18732 | -4/Armory | Attached Maxwheels, gained temporary slots: Weapon x2 18761 | -4/Armory | Lost 3 parts (2n1w) 18861 | -4/Armory | Assisted by bots powering up and referring to "LRC-V3" 19060 | -4/Armory | Allies destroyed B-86 Titan 19106 | -4/Armory | Fabricated Lrn. Sensor Array? 19128 | -4/Armory | P-70 Sage assimilated allied Enforcer 7a 19129 | -4/Armory | P-70 Sage assimilated allied Veteran 7d 19184 | -4/Armory | Fabricated Exp. Hacking Suite (x1) 19252 | -4/Armory | Fabricated Exp. Hacking Suite (x1) 19311 | -4/Armory | Fabricated Exp. Propulsion Shielding? 19412 | -4/Armory | Fabricated Centrium Medium Armor Plating (x1) 19445 | -4/Armory | Fabricated CPS Tube (x1) 19516 | -4/Armory | Fabricated Assault Drone Bay? 19566 | -4/Armory | Fabricated CPS Tube (x1) 19596 | -4/Armory | P-70 Sage assimilated allied Veteran 7e 19613 | -4/Armory | P-70 Sage assimilated allied Veteran 7a 19641 | -4/Armory | Fabricated Centrium Medium Armor Plating? 19683 | -4/Armory | Lost 4 allies 19798 | -4/Armory | Fabricated G-67 Veteran? 19872 | -4/Armory | Targeted by mysterious "MATRIX" hacker 20025 | -4/Armory | Build established: Hacker-Skirmisher 20134 | -4/Armory | System corruption reached 10% 20294 | -4/Armory | Found Fusion Bomb Launcher 20621 | -4/Armory | Lost 5 allies 20703 | -4/Armory | Discovered new exit (range 4) 20707 | -4/Armory | Identified exit to Lab 20733 | -4/Armory | Entered Lab 20733 | -4/Lab | Accompanied by 4 allies 20733 | -4/Lab | Discovered exit to Research (range 9) 20744 | -4/Lab | Hidden lab's door opened automatically 20744 | -4/Lab | Sensor layout match revealed 20745 | -4/Lab | Gained access to the hidden lab's interior 20864 | -4/Lab | Found Alien Artifact 20920 | -4/Lab | Found Transdimensional Reconstructor 20927 | -4/Lab | Found Alien Artifact 20943 | -4/Lab | Found Alien Artifact 20999 | -4/Lab | Found Quantum Router 21009 | -4/Lab | Found Exp. Powered Armor 21015 | -4/Lab | Found Warp Cannon 21031 | -4/Lab | Found Warp Cannon 21105 | -4/Lab | Identified Core Reset Matrix 21105 | -4/Lab | Identified Integrated Dissipator 21105 | -4/Lab | Identified Core Regenerator 21105 | -4/Lab | Used Core Reset Matrix 21106 | -4/Lab | Installed Integrated Dissipator, increased core heat dissipation (+20) 21306 | -4/Lab | Entered Research 21306 | -3/Research | Accompanied by 4 allies 21306 | -3/Research | Evolved 2 slots: Utility x2 21404 | -3/Research | Build established: Scavenger-Skirmisher 21506 | -3/Research | Revision forces began assault on 0b10 21669 | -3/Research | Found Com. Tesla Bomb Launcher 21676 | -3/Research | Met up with Revision 17++ 21705 | -3/Research | Loaded intel: 5 recycling unit locations 21765 | -3/Research | Build established: Hacker-Skirmisher 21846 | -3/Research | Identified exit to Quarantine 22006 | -3/Research | Research terminal network offline 22272 | -3/Research | Scrapoid reinforcements arrived 22274 | -3/Research | Attached CPS modules to 03R14-D 22276 | -3/Research | Attached CPS modules to 03R12-D 22279 | -3/Research | Attached CPS modules to 03R13-D 22587 | -3/Research | Build established: Commander-Skirmisher 22918 | -3/Research | Spotted Striker 22936 | -3/Research | Spotted Striker 22939 | -3/Research | P-80 Master assimilated allied 03R13-D 22941 | -3/Research | P-80 Master assimilated allied 03R14-D 22941 | -3/Research | Allies destroyed Striker 22969 | -3/Research | Found Scrap Suit 22971 | -3/Research | Spotted Striker 22980 | -3/Research | Destroyed Striker 22993 | -3/Research | Found Scrap Suit 23005 | -3/Research | Lost 4 allies 23087 | -3/Research | Entered Quarantine 23087 | -3/Quarantine | Accompanied by 2 allies 23088 | -3/Quarantine | Detected hypermatrix surge 23088 | -3/Quarantine | Sensed 16 artifacts in vicinity 23250 | -3/Quarantine | Build established: Hacker-Skirmisher 23321 | -3/Quarantine | Found Hpw. Transdimensional Reconstructor 23323 | -3/Quarantine | Found Hpw. Transdimensional Reconstructor 23327 | -3/Quarantine | Attached CPS modules to 03R15-D 23330 | -3/Quarantine | Found Hpw. Transdimensional Reconstructor 23681 | -3/Quarantine | Cryocooling Duct disabled 23696 | -3/Quarantine | Ambient heat levels rising (+20) 23696 | -3/Quarantine | Non-combat units ordered to evacuate 24250 | -3/Quarantine | Destroyed 8 combat bots 24497 | -3/Quarantine | Destroyed 7 combat bots 24516 | -3/Quarantine | Repaired Exp. Weapon Shielding 24544 | -3/Quarantine | Discovered new exit (range 14) 24583 | -3/Quarantine | Found Subatomic Replicator 24603 | -3/Quarantine | System corruption reached 10% 24731 | -3/Quarantine | Identified exit to Research 24732 | -3/Quarantine | Entered Research 24732 | -2/Research | Evolved 2 slots: Power x1, Utility x1 24992 | -2/Research | Identified exit to Testing 25008 | -2/Research | Loaded intel: 5 recycling unit locations 25090 | -2/Research | Scrapoid reinforcements arrived 25146 | -2/Research | Found Scrap Suit 25160 | -2/Research | Lost 4 allies 25264 | -2/Research | Discovered new exit (range 15) 25288 | -2/Research | Identified exit to Access 25292 | -2/Research | Build established: Hacker-Tank 25343 | -2/Research | Fabricated L-61 Swordsman? 25644 | -2/Research | Fabricated Exp. Signal Interpreter (x1) 25732 | -2/Research | First assault squad dispatched 25835 | -2/Research | Fabricated Exp. Signal Interpreter? 25869 | -2/Research | Spotted B-90 Cyclops 26159 | -2/Research | Destroyed 10 combat bots 27294 | -2/Research | Repaired Exp. Propulsion Shielding 27358 | -2/Research | System corruption reached 10% 27365 | -2/Research | Loaded intel: 4 garrison access locations 27386 | -2/Research | Lost 6 parts (4u2w) 27438 | -2/Research | Destroyed 9 combat bots 27487 | -2/Research | Learned location of Testing (-2) 27502 | -2/Research | Loaded intel: 3 repair station locations 27540 | -2/Research | Lost 3 parts (1n2u) 27555 | -2/Research | Learned Research security intel 27594 | -2/Research | Loaded intel: 61 trap records 27613 | -2/Research | High security lockdown imminent 27630 | -2/Research | Lost 8 parts (1p5u2w) 27631 | -2/Research | Core integrity fell below 50% 27644 | -2/Research | Spotted B-90 Cyclops 27657 | -2/Research | Destroyed 13 combat bots 27661 | -2/Research | Warped through subspace 27686 | -2/Research | Warped through subspace 27693 | -2/Research | High security lockdown engaged 27693 | -2/Research | Emitted hypermatrix ping 27698 | -2/Research | Assembled emerged from beneath the floor 27706 | -2/Research | Core integrity fell below 20% 27717 | -2/Research | Destroyed by S-43 Plague with Heavy Machine Gun Last Messages --------------- 27693_ Exp. Utility Shielding destroyed. 27693_ Imp. Phase Shifter destroyed. 27695_ B-90 Cyclops activates siege mode. 27696_ Scrap Suit destroyed. 27697_ Dropped Exp. Matter Compressor. 27698_ Assembled emerge from beneath the floor. 27698_ as-29692 sneak attacks. 27699_ as-29692 destroyed. 27699_ B-90 Cyclops system corrupted by crushing effect. 27699_ Slug penetrates P-80 Master. 27706_ Z9K62CXM55C&/DZP <>&Z8UYNMMJ= 27706_ Slammed into W-44 Eye. 27710_ Penetrated by Slug. 27712_ ALERT: Garrison Access compromised, dispatching multiple assault carriers. 27712_ Garrison Access disabled. 27712_ Unknown Hackware tumbles out of Garrison Access. 27713_ ALERT: Assault forces dispatched. Map ----- +----------------------------------------------------+ | """ #?????????# ^ ^ ?????????????????##""## | | #?????????#^^ """ ??????????????????## | | ? #??!??????#^ """ ???????????????????# | | ????????????+ "?? ???????????????????# | | ????????????# ?? ??????????????###### | | ????????????? ??? ??????????????# + = | | ####+????????????????????????????=???????# #* | | ?????????????????????????????????????????# #### | | ?????????????????????????????????????????# | | ?????????????????????????????????????????# | | ????????????????????????? ?????????????# | | ????????????????????????? #???????????# | | ????????????????????????? #???????????######## | | ????????????????????????? s #??????????????????# | | ?????????????????????????ss #??????????????????# | | ???? ???????????????????? #??????????????????# | | ???? ???????????????????? s #??????????????????# | | ???# #??????????????????+ #??????????????????# | | ???# #??????????????????# s #??????????????????# | | ???# #??????????????????# +??????????????????## | | ???# #??????????????????# #???????????????????? | | ???# #?????????????^????# #???????????????????? | | ???# #?????????########## #???????????????????? | | ???# #?????????# # #???????????????????? | | ???# #?????????# + #???????????????????? | | #### ####??????# """ #@ #???????????????????? | | #??????# !G" # #???????????????????? | | ######## " # #???????????????????? | | % + ##k #???????????????????? | | ######## #? ??????????????????? | | ####+####??????# #? ?????????????????? | | ?? #????????# #? ????????????????? | | % #????????##########? ???????????????? | | #??????????????????? ########??????????????? | | " " #????????????????????#?????????????????????? | | "R" #??????????????????????????????????????????? | | """ #??????????????????????????????????????????? | | #??????????????????????????????????????????? | | = #??????????????????????????????????????????? | | #########????????????????????????????????????????? | | #????????????????????????????????????????? | | #????????????????????????????????????????? | | #????????????????????????????????????????? | | #?????????????????????????????????????!??? | | #########????????????????????????????????????????? | | #???????????????????????????????????????????? | | #???????????????????????????????????????????? | | #???????????????????????????????????????????? | | #???????????????????????????????????????????? | | ! #??????????????????????????!????????????????? | +----------------------------------------------------+ Best States ------------- Heat Dissipation 119 Coolant Potential 200 Energy Generation 61 Energy Capacity 1100 Matter Stores 780 Matter Capacity 800 Sight Range 16 Robot Scan Range 18 Terrain Scan Density 10 Jamming Range 16 Cloak Strength 4 Additional Mass Support 12 Armor Coverage 1425 Resistance: TH 15 Propulsion Shielding 90 Utility Shielding 90 Weapon Shielding 90 Phase Shifting 15 Evasion (%) 55 Targeting Accuracy 8 Recoil Reduction 2 Matter Filtering 50 Salvage Targeting 4 Offensive Hacking 39 Defensive Hacking 25 Authchip Count 6 Item Schematics ----------------- CPS Tube | -3/Quarantine | Scanalyzed Centrium Medium Armor Plating | -3/Quarantine | Scanalyzed Com. Tesla Bomb Launcher | -3/Quarantine | Scanalyzed Beam Cannon | -2/Research | Hacked Lrg. Storage Unit | -2/Research | Hacked Exp. Signal Interpreter | -2/Research | Hacked Exp. Propulsion Shielding | -2/Research | Scanalyzed Exp. Weapon Shielding | -2/Research | Scanalyzed Lrn. Sensor Array | -2/Research | Scanalyzed Adv. Coolant Injector | -2/Research | Scanalyzed Robot Schematics ------------------ X-72 Disruptor | -3/Quarantine | Hacked Fabricated ------------ M-28 Smith | x1 | -6/Factory | Preloaded B-48 Gladiator | x3 | -5/Factory | Preloaded Exp. Propulsion Shielding | x1 | -4/Factory Exp. Weapon Shielding | x1 | -4/Armory Lrn. Sensor Array | x2 | -4/Armory | Authchip Exp. Hacking Suite | x1 | -4/Armory | Authchip Exp. Hacking Suite | x1 | -4/Armory | Authchip Exp. Propulsion Shielding | x1 | -4/Armory | Authchip Centrium Medium Armor Plating | x1 | -4/Armory | Authchip CPS Tube | x1 | -4/Armory | Authchip Assault Drone Bay | x1 | -4/Armory | Authchip CPS Tube | x1 | -4/Armory Centrium Medium Armor Plating | x1 | -4/Armory | Authchip G-67 Veteran | x3 | -4/Armory | Preloaded L-61 Swordsman | x3 | -2/Research | Preloaded Exp. Signal Interpreter | x1 | -2/Research Exp. Signal Interpreter | x1 | -2/Research Repaired ---------- Arm. Wheel | 64% | -6/Factory | Broken Ovr. Barrage Gun | 15% | -4/Factory Quantum Reactor | 53% | -4/Factory Adv. Variable Charge Gun | 76% | -4/Factory Ovr. Pulse Rifle | 50% | -4/Factory Exp. Weapon Shielding | 10% | -3/Quarantine Exp. Propulsion Shielding | 7% | -2/Research Studied --------- Fusion Bomb Launcher | -3/Research | Hacked Enh. Force Lance | -3/Research | Hacked Quantum Reactor | -2/Research | Hacked Lgt. Quantum Reactor | -2/Research | Hacked Enh. Quantum Rifle | -2/Research | Hacked Alien Tech Used ----------------- Integrated Reactor Transdimensional Reconstructor Core Reset Matrix Integrated Dissipator High-powered Transdimensional Reconstructor Achievements -------------- Hot Stuff Recruitment Drive Challenges ------------ None Game ------ Seed DeepPropulsionLegs Manual? 0 Play Time 09:03:50 Cumulative 726.3 hours Start 2026.07.14 @ 01:32:32 End 2026.07.15 @ 09:27:04 Sessions 23 Manual Loads 0 Difficulty Rogue Special Mode None Game No. 247 Rogue 243 Adventurer 4 Explorer 0 Win Type - Total 21 Types 9/2/6/0/0/0/2/2/0/0 Lore% 78 Gallery% 74 Achievement% 56 Wizard Run 0 Options --------- Layout 1 ASCII 0 Keyboard 0 Movement Arrows Keybinds 0 Fullscreen 1 Font 40/SmallcapsGlow Map View 50x40 Zoom Use 0% Tactical HUD 1 Map Filters NONE Filters NONE Steam 1 RUN: 9f6fc220-8fe8-43ac-9051-80ec5fed4642